bitfinex/quotes_BTCUSD_20250124
["timestamp","ask_amount","ask_price","bid_price","bid_amount"]
[1737695159654,0.00453958,104730.0,104720.0,0.81214981]
[1737695160293,0.00453958,104730.0,104720.0,0.84134707]
[1737695160977,8e-07,104730.0,104720.0,0.84134707]
[1737695161429,8e-07,104730.0,104720.0,0.81834707]
[1737695161643,0.00453954,104730.0,104720.0,0.81834707]
[1737695162070,8e-07,104730.0,104720.0,0.91254707]
[1737695162316,8e-07,104730.0,104720.0,0.90354707]
[1737695162527,8e-07,104730.0,104720.0,0.90854707]
[1737695163154,8e-07,104730.0,104720.0,0.91254707]
[1737695164299,8e-07,104730.0,104720.0,0.90354707]
[1737695164720,8e-07,104730.0,104720.0,0.91754707]
[1737695166923,0.0001423,104740.0,104730.0,0.197183]
[1737695166924,1e-08,104740.0,104730.0,0.197183]
[1737695167075,1e-08,104740.0,104730.0,0.53487177]
[1737695167298,1e-08,104740.0,104730.0,1.01229177]
[1737695168282,1e-08,104740.0,104730.0,1.03529177]
[1737695169117,1e-08,104740.0,104730.0,1.02529177]
[1737695169325,1e-08,104740.0,104730.0,1.03529177]
[1737695171100,1e-08,104740.0,104730.0,1.06512128]
[1737695171567,1e-08,104740.0,104730.0,1.08417267]
[1737695172996,1e-08,104750.0,104730.0,2.17498967]
[1737695173205,1e-08,104750.0,104740.0,0.3413934]
[1737695173406,1e-08,104750.0,104740.0,1.08863277]
[1737695173638,0.0001423,104770.0,104760.0,0.095456]
[1737695173834,0.0001423,104770.0,104760.0,0.32757266]
[1737695173835,0.00029068,104770.0,104760.0,0.32757266]
[1737695174272,0.00020296,104770.0,104760.0,0.32757266]
[1737695174607,0.00020296,104770.0,104760.0,0.80485266]
[1737695175028,0.00020296,104770.0,104760.0,0.80885266]
[1737695175243,0.00020296,104770.0,104760.0,0.81785266]
[1737695177568,0.00020296,104770.0,104760.0,0.81385266]
[1737695177988,0.00020296,104770.0,104760.0,0.82854076]
[1737695178194,0.00020296,104770.0,104760.0,0.81954076]
[1737695178397,0.00020296,104770.0,104760.0,0.82354076]
[1737695178587,0.00020296,104770.0,104760.0,0.82854076]
[1737695178793,0.00020296,104770.0,104760.0,0.72296865]
[1737695179171,0.00020296,104770.0,104760.0,0.62562136]
[1737695179370,0.08510539,104770.0,104760.0,0.62562136]
[1737695179608,0.08510539,104770.0,104760.0,0.76506637]
[1737695180046,0.08510539,104770.0,104760.0,0.86563848]
[1737695180217,0.08510539,104770.0,104760.0,0.96298577]
[1737695180455,0.07960296,104770.0,104760.0,0.9972104]
[1737695180801,0.07960296,104770.0,104760.0,0.9922104]
[1737695181008,0.07960296,104770.0,104760.0,0.9962104]
[1737695181414,0.07960296,104770.0,104760.0,1.08039547]
[1737695181666,0.07960296,104770.0,104760.0,1.04217084]
[1737695181841,0.08503029,104770.0,104760.0,0.84825144]
[1737695181997,0.08503029,104770.0,104760.0,0.81992107]
[1737695182203,0.08503029,104770.0,104760.0,0.81092107]
[1737695182460,0.08503029,104770.0,104760.0,0.81992107]
[1737695182661,0.12500296,104770.0,104760.0,0.81992107]
[1737695182866,0.1305252,104770.0,104760.0,0.81992107]
[1737695184592,0.1305252,104770.0,104760.0,0.735736]
[1737695185623,0.1305252,104770.0,104760.0,0.9386554]
[1737695185829,0.00020296,104770.0,104760.0,0.9386554]
[1737695186027,0.00020296,104770.0,104760.0,0.96788151]
[1737695188727,0.00020296,104770.0,104760.0,0.99088151]
[1737695190312,0.00020296,104770.0,104760.0,0.8623094]
[1737695190540,0.12550296,104770.0,104760.0,0.735736]
[1737695190966,0.13024865,104770.0,104760.0,0.585736]
[1737695191401,0.13024865,104770.0,104760.0,0.58603441]
[1737695191609,0.13024865,104770.0,104760.0,0.73603441]
[1737695191810,0.13024865,104770.0,104760.0,0.72703441]
[1737695192019,0.13024865,104770.0,104760.0,0.80721948]
[1737695192268,0.13024865,104770.0,104760.0,0.81421948]
[1737695192520,0.13024865,104770.0,104760.0,0.81121948]
[1737695192762,0.13024865,104770.0,104760.0,0.82021948]
[1737695192989,0.13024865,104770.0,104760.0,0.80721948]
[1737695193193,0.13024865,104770.0,104760.0,0.81021948]
[1737695193370,0.07810296,104770.0,104760.0,0.91456677]
[1737695193576,0.07810296,104770.0,104760.0,0.90756677]
[1737695193785,0.07810296,104770.0,104760.0,0.90456677]
[1737695193980,0.07810296,104770.0,104760.0,0.80721948]
[1737695194136,0.0828695,104770.0,104760.0,0.80721948]
[1737695195022,0.0828695,104770.0,104760.0,0.81621948]
[1737695195219,0.0828695,104770.0,104760.0,0.83948627]
[1737695195425,0.0828695,104770.0,104760.0,0.86164849]
[1737695195629,0.07810296,104770.0,104760.0,0.86164849]
[1737695196040,0.00020296,104770.0,104760.0,1.17399271]
[1737695196261,0.0928666,104790.0,104780.0,0.095438]
[1737695196402,0.0928666,104790.0,104780.0,0.34278529]
[1737695196639,0.0928666,104790.0,104780.0,0.245438]
[1737695196867,0.09761772,104790.0,104780.0,0.245438]
[1737695198310,0.09761772,104790.0,104780.0,0.249438]
[1737695198509,0.02061772,104790.0,104780.0,0.48161613]
[1737695198864,0.0158666,104790.0,104780.0,0.37704402]
[1737695199094,0.0941666,104790.0,104780.0,0.37704402]
[1737695199302,0.0941666,104790.0,104780.0,0.37604402]
[1737695199684,0.0941666,104790.0,104780.0,0.37904402]
[1737695200187,0.09892691,104790.0,104780.0,0.40309552]
[1737695200591,0.0941666,104790.0,104780.0,0.40309552]
[1737695200990,0.09891466,104790.0,104780.0,0.40309552]
[1737695201619,0.0941666,104790.0,104780.0,0.41209552]
[1737695202048,0.09891466,104790.0,104780.0,0.40309552]
[1737695202246,0.09891466,104790.0,104780.0,0.41209552]
[1737695202456,0.09891466,104790.0,104780.0,0.40909552]
[1737695202654,0.02061466,104790.0,104780.0,0.54166763]
[1737695202857,0.0158666,104790.0,104780.0,0.54166763]
[1737695203078,0.0158666,104790.0,104780.0,0.53766763]
[1737695203298,0.0158666,104790.0,104780.0,0.40909552]
[1737695203459,0.0158666,104790.0,104780.0,0.41309552]
[1737695203629,0.0964666,104790.0,104780.0,0.40409552]
[1737695204090,0.0964666,104790.0,104780.0,0.40009552]
[1737695204358,0.0964666,104790.0,104780.0,0.40509552]
[1737695204571,0.10121313,104790.0,104780.0,0.40509552]
[1737695204748,0.02061313,104790.0,104780.0,0.40509552]
[1737695204910,0.02061313,104790.0,104780.0,0.53366763]
[1737695205317,0.02061313,104790.0,104780.0,0.66386763]
[1737695205504,0.00472201,104790.0,104780.0,0.52866763]
[1737695205693,0.0752423,104800.0,104790.0,0.245428]
[1737695205900,0.0752423,104800.0,104790.0,0.37203402]
[1737695206830,0.0752423,104800.0,104790.0,0.48660613]
[1737695207049,0.0001423,104800.0,104790.0,0.50960613]
[1737695207452,0.0001423,104800.0,104790.0,0.51360613]
[1737695207653,0.0001423,104800.0,104790.0,0.66427824]
[1737695207851,0.0001423,104800.0,104790.0,0.55870613]
[1737695208631,0.0001423,104800.0,104790.0,0.51360613]
[1737695208838,3e-07,104800.0,104790.0,0.63917824]
[1737695209067,3e-07,104800.0,104790.0,1.11631824]
[1737695209293,3e-07,104800.0,104790.0,0.99074613]
[1737695209926,3e-07,104800.0,104790.0,0.84074613]
[1737695210790,0.00420343,104800.0,104790.0,0.84074613]
[1737695210963,3e-07,104800.0,104790.0,0.84074613]
[1737695211170,3e-07,104800.0,104790.0,1.02131824]
[1737695212781,3e-07,104800.0,104790.0,1.10150331]
[1737695212981,3e-07,104800.0,104790.0,1.10750331]
[1737695213195,3e-07,104800.0,104790.0,2.83490331]
[1737695213398,3e-07,104800.0,104790.0,2.89080331]
[1737695213620,3e-07,104800.0,104790.0,2.87480331]
[1737695213826,3e-07,104800.0,104790.0,2.88080331]
[1737695214021,3e-07,104800.0,104790.0,2.89080331]
[1737695214223,3e-07,104800.0,104790.0,2.88180331]
[1737695214543,0.0001423,104820.0,104810.0,0.30578211]
[1737695214795,0.00029068,104820.0,104810.0,0.7983794]
[1737695216406,0.00029068,104820.0,104810.0,0.8073794]
[1737695216643,0.0079752,104820.0,104810.0,0.8123794]
[1737695216889,0.00029068,104820.0,104810.0,0.8123794]
[1737695217391,0.00029068,104820.0,104810.0,0.8713794]
[1737695218123,0.0001421,104830.0,104820.0,0.22397311]
[1737695218392,0.00063649,104830.0,104820.0,0.7983304]
[1737695219101,0.00063649,104830.0,104820.0,0.69275829]
[1737695219582,0.00063649,104830.0,104820.0,0.69775829]
[1737695220082,0.00063649,104830.0,104820.0,0.8123304]
[1737695220339,0.00063649,104830.0,104820.0,0.8892304]
[1737695220574,0.00063649,104830.0,104820.0,0.7983304]
[1737695220751,0.00063649,104830.0,104820.0,0.8073304]
[1737695220997,0.00063649,104830.0,104820.0,0.8113304]
[1737695221211,0.00063649,104830.0,104820.0,0.84045876]
[1737695221670,0.00063649,104830.0,104820.0,0.83145876]
[1737695221984,0.00063649,104830.0,104820.0,0.82745876]
[1737695222463,0.00063649,104830.0,104820.0,0.83245876]
[1737695222659,0.00063649,104830.0,104820.0,0.8033304]
[1737695222868,0.00063649,104830.0,104820.0,0.69775829]
[1737695223074,0.00063649,104830.0,104820.0,0.70675829]
[1737695223423,0.00063649,104830.0,104820.0,0.70175829]
[1737695223844,0.00063649,104830.0,104820.0,0.70575829]
[1737695224044,0.00063649,104830.0,104820.0,1.04050251]
[1737695224243,0.00063649,104830.0,104820.0,0.96402989]
[1737695224506,0.00063649,104830.0,104820.0,0.95502989]
[1737695224659,0.00063649,104830.0,104820.0,0.96402989]
[1737695225064,0.00063649,104830.0,104820.0,0.9309304]
[1737695225268,0.00063649,104830.0,104820.0,0.96502501]
[1737695225480,0.00063649,104830.0,104820.0,0.9359304]
[1737695225676,0.00063649,104830.0,104820.0,0.8901304]
[1737695225883,0.00063649,104830.0,104820.0,0.8851304]
[1737695226066,0.00063649,104830.0,104820.0,0.8764286]
[1737695226442,0.00063649,104830.0,104820.0,0.68405649]
[1737695227211,0.00063649,104830.0,104820.0,0.8036286]
[1737695227431,0.00063649,104830.0,104820.0,0.8126286]
[1737695228672,0.00063649,104830.0,104820.0,0.8076286]
[1737695229057,0.00063649,104830.0,104820.0,0.8026286]
[1737695229525,0.00063649,104830.0,104820.0,0.8116286]
[1737695229762,0.12733649,104830.0,104820.0,0.5767092]
[1737695229978,0.12733649,104830.0,104820.0,0.5857092]
[1737695230181,0.00063649,104830.0,104820.0,0.68305649]
[1737695230299,0.07683649,104830.0,104820.0,0.68305649]
[1737695230520,0.07683649,104830.0,104820.0,0.70605649]
[1737695230882,0.083879,104830.0,104820.0,0.70605649]
[1737695231021,0.07683649,104830.0,104820.0,0.70605649]
[1737695231375,0.083879,104830.0,104820.0,0.5857092]
[1737695231566,0.132679,104830.0,104820.0,0.68305649]
[1737695231976,0.12563649,104830.0,104820.0,0.70605649]
[1737695232329,0.12563649,104830.0,104820.0,0.5857092]
[1737695232549,0.13148118,104830.0,104820.0,0.4903082]
[1737695232755,0.12563649,104830.0,104820.0,0.4903082]
[1737695232960,0.13148116,104830.0,104820.0,0.4903082]
[1737695233187,0.22687316,104830.0,104820.0,0.4863082]
[1737695233404,0.22687316,104830.0,104820.0,0.4773082]
[1737695233741,0.22687316,104830.0,104820.0,0.4903082]
[1737695233875,0.22687316,104830.0,104820.0,0.5767092]
[1737695233876,0.13148116,104830.0,104820.0,0.5767092]
[1737695234094,0.13148116,104830.0,104820.0,0.5797092]
[1737695234295,0.22102849,104830.0,104820.0,0.4843082]
[1737695234553,0.13148116,104830.0,104820.0,0.4843082]
[1737695234751,0.22687316,104830.0,104820.0,0.4843082]
[1737695235030,0.22687316,104830.0,104820.0,0.4803082]
[1737695235239,0.22687316,104830.0,104820.0,0.4813082]
[1737695236217,0.32422045,104830.0,104820.0,0.4813082]
[1737695236424,0.43979256,104830.0,104820.0,0.0042982]
[1737695237827,1.13979256,104830.0,104820.0,0.0042982]
[1737695241385,1.14979256,104830.0,104820.0,0.0042982]
[1737695241590,1.13979256,104830.0,104820.0,0.0042982]
[1737695246807,1.14979256,104830.0,104820.0,0.0042982]
[1737695247224,1.13979256,104830.0,104820.0,0.0042982]
[1737695248287,1.14979256,104830.0,104820.0,0.0042982]
[1737695250602,1.13979256,104830.0,104820.0,0.0042982]
[1737695253222,1.14979256,104830.0,104820.0,0.0042982]
[1737695254900,1.13979256,104830.0,104820.0,0.0042982]
[1737695256964,1.13979256,104830.0,104820.0,0.0996992]
[1737695257168,1.03422045,104830.0,104820.0,0.0996992]
[1737695257413,1.13979256,104830.0,104820.0,0.0996992]
[1737695257812,1.13979256,104830.0,104820.0,0.0042982]
[1737695258034,1.13979256,104830.0,104820.0,0.0996992]
[1737695259460,1.13979256,104830.0,104820.0,0.0042982]
[1737695261428,1.14979256,104830.0,104820.0,0.0042982]
[1737695264968,1.14979256,104830.0,104820.0,0.0032982]
[1737695265216,1.14979256,104830.0,104820.0,0.0002982]
[1737695265419,1.14979256,104830.0,104820.0,0.0012982]
[1737695266180,1.13979256,104830.0,104820.0,0.0012982]
[1737695266813,1.14979256,104830.0,104820.0,0.0012982]
[1737695267641,1.13979256,104830.0,104820.0,0.0012982]
[1737695270341,1.13979256,104830.0,104820.0,0.1512982]
[1737695272606,1.13979256,104830.0,104820.0,0.6282882]
[1737695273521,1.03422045,104830.0,104820.0,0.7236892]
[1737695273930,0.81382845,104830.0,104820.0,0.7236892]
[1737695274381,0.90922045,104830.0,104820.0,0.7236892]
[1737695275174,1.01479256,104830.0,104820.0,0.6282882]
[1737695275620,0.90922045,104830.0,104820.0,0.7236892]
[1737695281782,1.01479256,104830.0,104820.0,0.7236892]
[1737695282006,0.90922045,104830.0,104820.0,0.7236892]
[1737695282203,1.01479256,104830.0,104820.0,0.7236892]
[1737695284068,1.01479256,104830.0,104820.0,0.6282882]
[1737695288342,0.91940056,104830.0,104820.0,0.7236892]
[1737695288561,0.91940056,104830.0,104820.0,0.5736892]
[1737695288795,0.82205327,104830.0,104820.0,0.5736892]
[1737695289211,0.91744527,104830.0,104820.0,0.5736892]
[1737695291071,0.91744527,104830.0,104820.0,0.4782882]
[1737695291864,0.91744527,104830.0,104820.0,0.5736892]
[1737695293852,0.91744527,104830.0,104820.0,0.4782882]
[1737695294618,0.91744527,104830.0,104820.0,0.5736892]
[1737695299387,1.01479256,104830.0,104820.0,0.5736892]
[1737695301547,0.91940056,104830.0,104820.0,0.5736892]
[1737695302132,1.01479256,104830.0,104820.0,0.5736892]
[1737695303560,0.91940056,104830.0,104820.0,0.5736892]
[1737695303775,0.88266134,104830.0,104820.0,0.5736892]
[1737695304436,0.71648116,104830.0,104820.0,0.5736892]
[1737695304645,0.70648116,104830.0,104820.0,0.6989892]
[1737695304854,0.70648116,104830.0,104820.0,0.86516938]
[1737695305063,0.00648116,104830.0,104820.0,0.91744822]
[1737695305522,0.00648116,104830.0,104820.0,0.98628111]
[1737695305738,0.0001421,104840.0,104830.0,0.023]
[1737695305944,0.00457936,104840.0,104830.0,0.91901102]
[1737695306147,0.00457936,104840.0,104830.0,0.85017813]
[1737695306781,0.00457936,104840.0,104830.0,0.91901102]
[1737695306992,0.00457936,104840.0,104830.0,0.85017813]
[1737695307558,0.0001421,104840.0,104830.0,0.85217813]
[1737695307770,0.00458049,104840.0,104830.0,0.86117813]
[1737695307970,0.00458049,104840.0,104830.0,0.96598994]
[1737695308591,0.0001421,104840.0,104830.0,0.96598994]
[1737695308955,0.0001421,104840.0,104830.0,1.05987119]
[1737695309425,1e-07,104840.0,104830.0,1.05787119]
[1737695309831,1e-07,104840.0,104830.0,1.06087119]
[1737695310038,1e-07,104840.0,104830.0,1.09071558]
[1737695310220,1e-07,104840.0,104830.0,1.08771558]
[1737695310491,1e-07,104840.0,104830.0,1.07871558]
[1737695310703,1e-07,104840.0,104830.0,1.08271558]
[1737695310903,1e-07,104840.0,104830.0,1.09171558]
[1737695313745,1e-07,104840.0,104830.0,1.00753051]
[1737695314096,1e-07,104840.0,104830.0,2.19383051]
[1737695314930,1e-07,104840.0,104830.0,2.05557355]
[1737695315141,1e-07,104840.0,104830.0,2.02629471]
[1737695315702,0.00476227,104840.0,104830.0,2.02629471]
[1737695315914,0.00476227,104840.0,104830.0,1.92894742]
[1737695316082,0.00476227,104840.0,104830.0,1.87994742]
[1737695316488,0.00476227,104840.0,104830.0,1.80074742]
[1737695317662,0.00476227,104840.0,104830.0,0.61444742]
[1737695318029,0.00476227,104840.0,104830.0,0.59577213]
[1737695318254,0.10957408,104840.0,104830.0,0.59577213]
[1737695318463,0.00476227,104840.0,104830.0,0.59577213]
[1737695319033,0.00476227,104840.0,104830.0,0.59177213]
[1737695319245,0.00476227,104840.0,104830.0,0.76189929]
[1737695319458,0.00476227,104840.0,104830.0,0.76619791]
[1737695319868,0.00476227,104840.0,104830.0,0.66999791]
[1737695320279,0.00476227,104840.0,104830.0,0.58465062]
[1737695320490,0.00476227,104840.0,104830.0,0.57565062]
[1737695320903,0.00476227,104840.0,104830.0,0.58465062]
[1737695323127,0.08276227,104840.0,104830.0,0.58465062]
[1737695323342,0.00476227,104840.0,104830.0,0.58465062]
[1737695323555,0.00476227,104840.0,104830.0,0.59507531]
[1737695323759,0.00476227,104840.0,104830.0,0.6924226]
[1737695324001,1e-07,104840.0,104830.0,0.6924226]
[1737695324198,1e-07,104840.0,104830.0,0.8209226]
[1737695324402,0.00476351,104840.0,104830.0,0.8209226]
[1737695324635,1e-07,104840.0,104830.0,0.8209226]
[1737695324849,1e-07,104840.0,104830.0,0.83760141]
[1737695325178,0.00476351,104840.0,104830.0,0.83760141]
[1737695325764,1e-07,104840.0,104830.0,0.83760141]
[1737695325987,0.00476351,104840.0,104830.0,0.83760141]
[1737695326371,1e-07,104840.0,104830.0,0.83760141]
[1737695326581,0.00476351,104840.0,104830.0,0.83760141]
[1737695327760,0.00476351,104840.0,104830.0,0.61175412]
[1737695329350,0.00476351,104840.0,104830.0,0.59507531]
[1737695331093,0.23317532,104840.0,104830.0,0.59507531]
[1737695331290,0.12836351,104840.0,104830.0,0.59507531]
[1737695332001,0.12836351,104840.0,104830.0,0.59207531]
[1737695332189,0.12836351,104840.0,104830.0,0.58165062]
[1737695332441,0.12836351,104840.0,104830.0,0.58465062]
[1737695332650,0.12836351,104840.0,104830.0,0.57565062]
[1737695333026,0.12836351,104840.0,104830.0,0.58465062]
[1737695333450,0.12836351,104840.0,104830.0,0.60137074]
[1737695334304,0.12836351,104840.0,104830.0,0.6118242]
[1737695334514,0.00476351,104840.0,104830.0,0.6118242]
[1737695335541,0.00476351,104840.0,104830.0,0.5998242]
[1737695335792,0.00476351,104840.0,104830.0,0.6028242]
[1737695335972,0.00476351,104840.0,104830.0,0.6118242]
[1737695336202,1e-07,104840.0,104830.0,0.79047149]
[1737695336369,1e-07,104840.0,104830.0,0.9424833]
[1737695336571,0.0001421,104850.0,104830.0,0.81792668]
[1737695336772,0.0001421,104850.0,104840.0,0.3788421]
[1737695336975,0.0490421,104880.0,104870.0,0.095356]
[1737695337203,0.70029038,104880.0,104870.0,0.572136]
[1737695337774,0.00029038,104880.0,104870.0,0.572136]
[1737695337978,0.00029038,104880.0,104870.0,0.58258946]
[1737695338787,0.00518479,104880.0,104870.0,0.58258946]
[1737695339820,0.00518479,104880.0,104870.0,0.60730958]
[1737695341029,0.1857966,104880.0,104870.0,0.60730958]
[1737695341235,0.28314389,104880.0,104870.0,0.60730958]
[1737695342391,0.28314389,104880.0,104870.0,0.60530958]
[1737695342600,0.5429027,104880.0,104870.0,0.50395358]
[1737695342800,0.65324999,104880.0,104870.0,0.50895358]
[1737695343005,0.63385639,104880.0,104870.0,0.48178]
[1737695343438,0.60494901,104880.0,104870.0,0.48178]
[1737695343784,0.5529027,104880.0,104870.0,0.47878]
[1737695344117,0.55281503,104880.0,104870.0,0.47678]
[1737695344533,1.25281503,104880.0,104870.0,0.47778]
[1737695344757,1.2851941,104880.0,104870.0,0.47778]
[1737695344971,1.34314779,104880.0,104870.0,0.47678]
[1737695345176,1.2851941,104880.0,104870.0,0.47678]
[1737695345591,1.2851941,104880.0,104870.0,0.47978]
[1737695346852,1.2651941,104880.0,104870.0,0.47978]
[1737695347060,1.2851941,104880.0,104870.0,0.47978]
[1737695347481,1.2651941,104880.0,104870.0,0.47978]
[1737695347698,1.2839877,104880.0,104870.0,0.47978]
[1737695347905,1.3655941,104880.0,104870.0,0.47978]
[1737695348110,1.2651941,104880.0,104870.0,0.47978]
[1737695351114,1.34314779,104880.0,104870.0,0.47978]
[1737695352505,1.34314779,104880.0,104870.0,0.003]
[1737695352895,0.1281,104860.0,104850.0,0.15]
[1737695353113,1.23558799,104860.0,104850.0,0.15]
[1737695353334,1.13077618,104860.0,104850.0,0.15]
[1737695354281,1.13077618,104860.0,104850.0,0.15029862]
[1737695354743,1.15077618,104860.0,104850.0,0.00029862]
[1737695355201,1.13077618,104860.0,104850.0,0.00029862]
[1737695355838,1.14077618,104860.0,104850.0,0.00029862]
[1737695356052,1.14077618,104860.0,104850.0,0.00129862]
[1737695356664,1.13077618,104860.0,104850.0,0.00129862]
[1737695357071,1.15077618,104860.0,104850.0,0.00129862]
[1737695357715,1.13077618,104860.0,104850.0,0.00129862]
[1737695359249,1.15077618,104860.0,104850.0,0.00129862]
[1737695359396,1.14077618,104860.0,104850.0,0.00129862]
[1737695359603,1.16077618,104860.0,104850.0,0.00129862]
[1737695359857,1.16046613,104860.0,104850.0,0.00129862]
[1737695360438,1.15046613,104860.0,104850.0,0.00129862]
[1737695361484,1.14046613,104860.0,104850.0,0.00129862]
[1737695361685,1.15046613,104860.0,104850.0,0.00129862]
[1737695362075,1.00267618,104860.0,104850.0,0.09667262]
[1737695362308,0.80249937,104860.0,104850.0,0.09667262]
[1737695362509,0.90731118,104860.0,104850.0,0.09667262]
[1737695362714,1.00267618,104860.0,104850.0,0.09667262]
[1737695362917,0.30267618,104860.0,104850.0,0.09667262]
[1737695363127,0.30267618,104860.0,104850.0,0.00129862]
[1737695363337,0.31267618,104860.0,104850.0,0.00129862]
[1737695363511,0.44117618,104860.0,104850.0,0.00129862]
[1737695363928,1.23598799,104860.0,104850.0,0.00129862]
[1737695364134,1.25598799,104860.0,104850.0,0.00129862]
[1737695364493,1.15117618,104860.0,104850.0,0.00129862]
[1737695364908,1.27898799,104860.0,104850.0,0.00129862]
[1737695365108,1.33694168,104860.0,104850.0,0.00129862]
[1737695366059,1.31694168,104860.0,104850.0,0.00129862]
[1737695366284,1.33694168,104860.0,104850.0,0.00029862]
[1737695366492,1.33694168,104860.0,104850.0,0.00129862]
[1737695366690,1.3100343,104860.0,104850.0,0.00129862]
[1737695366894,1.28098799,104860.0,104850.0,0.00129862]
[1737695367116,1.17617618,104860.0,104850.0,0.00129862]
[1737695368086,1.28098799,104860.0,104850.0,0.00129862]
[1737695368731,1.27898799,104860.0,104850.0,0.00029862]
[1737695368884,1.32743815,104860.0,104850.0,0.00029862]
[1737695369085,1.35834553,104860.0,104850.0,0.00129862]
[1737695369934,1.35634553,104860.0,104850.0,0.00029862]
[1737695370151,1.35834553,104860.0,104850.0,0.00129862]
[1737695370565,1.35834553,104860.0,104850.0,0.00029862]
[1737695370742,1.36034553,104860.0,104850.0,0.00129862]
[1737695372062,1.35634553,104860.0,104850.0,0.00029862]
[1737695372264,1.35834553,104860.0,104850.0,0.00129862]
[1737695373449,1.35634553,104860.0,104850.0,0.00029862]
[1737695373831,1.35834553,104860.0,104850.0,0.00129862]
[1737695378055,1.35634553,104860.0,104850.0,0.00029862]
[1737695378248,1.45634553,104860.0,104850.0,0.00029862]
[1737695378499,1.45834553,104860.0,104850.0,0.00129862]
[1737695383483,1.55874553,104860.0,104850.0,0.00129862]
[1737695385112,1.53874553,104860.0,104850.0,0.00129862]
[1737695385358,1.55874553,104860.0,104850.0,0.00129862]
[1737695392488,1.52969922,104860.0,104850.0,0.00129862]
[1737695394561,1.50969922,104860.0,104850.0,0.00129862]
[1737695394998,1.50079184,104860.0,104850.0,0.00129862]
[1737695395590,1.37598003,104860.0,104850.0,0.00129862]
[1737695395800,1.47879184,104860.0,104850.0,0.00029862]
[1737695396026,1.48079184,104860.0,104850.0,0.00129862]
[1737695396424,1.48079184,104860.0,104850.0,0.00029862]
[1737695396884,1.50079184,104860.0,104850.0,0.00029862]
[1737695397676,1.50279184,104860.0,104850.0,0.00129862]
[1737695400410,1.38239184,104860.0,104850.0,0.00129862]
[1737695400651,1.27758003,104860.0,104850.0,0.00129862]
[1737695401219,1.38239184,104860.0,104850.0,0.00129862]
[1737695401418,1.39839184,104860.0,104850.0,0.00029862]
[1737695401736,1.40039184,104860.0,104850.0,0.00129862]
[1737695401947,0.095383,104840.0,104830.0,0.13839751]
[1737695402143,0.9975421,104840.0,104830.0,0.13839751]
[1737695402343,1.00183235,104840.0,104830.0,0.13839751]
[1737695403836,0.89702054,104840.0,104830.0,0.13839751]
[1737695404191,0.89702054,104840.0,104830.0,0.13939751]
[1737695404395,0.80163754,104840.0,104830.0,0.23478951]
[1737695404608,0.70429025,104840.0,104830.0,0.23478951]
[1737695404992,0.70429025,104840.0,104830.0,0.26507421]
[1737695405449,0.00429025,104840.0,104830.0,0.23378951]
[1737695405642,0.00429025,104840.0,104830.0,0.23778951]
[1737695405847,0.00429025,104840.0,104830.0,0.23878951]
[1737695406046,0.00429025,104840.0,104830.0,0.2515771]
[1737695406263,0.00429025,104840.0,104830.0,0.2595771]
[1737695406716,0.00429025,104840.0,104830.0,0.2535771]
[1737695406930,0.00429025,104840.0,104830.0,0.34435075]
[1737695407135,0.00429025,104840.0,104830.0,0.34135075]
[1737695408060,0.00429025,104840.0,104830.0,0.34335075]
[1737695417165,0.00429025,104840.0,104830.0,0.57470731]
[1737695417593,0.04870138,104850.0,104840.0,0.220283]
[1737695418037,0.05300889,104850.0,104840.0,0.220283]
[1737695418260,0.05300889,104850.0,104840.0,0.2494615]
[1737695418469,0.05300889,104850.0,104840.0,0.4516206]
[1737695419052,0.05300889,104850.0,104840.0,0.4606206]
[1737695419278,0.05300889,104850.0,104840.0,0.50882925]
[1737695419484,0.05300889,104850.0,104840.0,0.40001744]
[1737695420099,0.05300889,104850.0,104840.0,0.39501744]
[1737695420300,0.05300889,104850.0,104840.0,0.49982925]
[1737695420479,0.05300889,104850.0,104840.0,0.47065075]
[1737695420674,0.05300889,104850.0,104840.0,0.36583894]
[1737695420904,0.05300889,104850.0,104840.0,0.48738778]
[1737695421271,0.05300889,104850.0,104840.0,0.52554793]
[1737695421473,0.05300889,104850.0,104840.0,0.49638778]
[1737695421680,0.05300889,104850.0,104840.0,0.50038778]
[1737695421901,0.05300889,104850.0,104840.0,0.47946561]
[1737695422105,0.05300889,104850.0,104840.0,0.5246538]
[1737695422302,0.05315109,104850.0,104840.0,0.5246538]
[1737695423540,0.05315109,104850.0,104840.0,0.71323926]
[1737695425473,0.05315109,104850.0,104840.0,0.60842745]
[1737695425674,0.05315109,104850.0,104840.0,0.61819894]
[1737695426089,0.05315109,104850.0,104840.0,0.72301075]
[1737695426856,0.1001422,104860.0,104850.0,0.372274]
[1737695427071,0.10029043,104860.0,104850.0,0.94649129]
[1737695428296,0.10029043,104860.0,104850.0,0.97377777]
[1737695428509,0.10029043,104860.0,104850.0,0.98277777]
[1737695428688,0.10029043,104860.0,104850.0,0.97877777]
[1737695429121,0.10029043,104860.0,104850.0,0.98777777]
[1737695429322,0.10029043,104860.0,104850.0,0.98277777]
[1737695429746,0.10029043,104860.0,104850.0,0.98677777]
[1737695429921,0.10029043,104860.0,104850.0,0.88943048]
[1737695431982,0.10869688,104860.0,104850.0,0.88943048]
[1737695434852,0.10659408,104860.0,104850.0,0.88943048]
[1737695437935,0.10659408,104860.0,104850.0,0.98677777]
[1737695439509,0.10659408,104860.0,104850.0,0.88943048]
[1737695439898,0.10659408,104860.0,104850.0,0.90616971]
[1737695440275,0.10659408,104860.0,104850.0,0.77926971]
[1737695441205,0.10659408,104860.0,104850.0,0.76253048]
[1737695443337,0.09940073,104860.0,104850.0,1.08968958]
[1737695443503,5.443e-05,104880.0,104870.0,0.245356]
[1737695443712,0.00010382,104880.0,104870.0,1.0009951]
[1737695444056,0.00407302,104880.0,104870.0,1.03015403]
[1737695444280,0.00010382,104880.0,104870.0,1.0009951]
[1737695444485,0.00010382,104880.0,104870.0,0.89618329]
[1737695444803,0.00407831,104880.0,104870.0,0.89618329]
[1737695445022,0.00010382,104880.0,104870.0,1.0039951]
[1737695445235,0.00407831,104880.0,104870.0,1.0039951]
[1737695445446,0.00010382,104880.0,104870.0,1.07094807]
[1737695445650,0.00407302,104880.0,104870.0,1.10909629]
[1737695445907,0.00010382,104880.0,104870.0,1.10609629]
[1737695446342,0.00407302,104880.0,104870.0,1.11109629]
[1737695446524,0.00010382,104880.0,104870.0,1.10209629]
[1737695446758,0.00407302,104880.0,104870.0,1.10209629]
[1737695446961,0.00010382,104880.0,104870.0,1.10209629]
[1737695447174,0.00407025,104880.0,104870.0,1.11883878]
[1737695447348,0.00010382,104880.0,104870.0,1.11883878]
[1737695447551,0.00407025,104880.0,104870.0,1.11883878]
[1737695447756,0.00010382,104880.0,104870.0,1.11883878]
[1737695447968,0.00407025,104880.0,104870.0,1.12283878]
[1737695448164,0.00010382,104880.0,104870.0,1.1135847]
[1737695448369,0.00407025,104880.0,104870.0,1.1185847]
[1737695448502,0.00010382,104880.0,104870.0,1.1185847]
[1737695448716,0.00406748,104880.0,104870.0,1.1045847]
[1737695448922,0.00010382,104880.0,104870.0,1.1045847]
[1737695449130,0.00407025,104880.0,104870.0,1.1045847]
[1737695449338,0.00010382,104880.0,104870.0,1.1045847]